lending/lending_fUSD_20240112
["ID","MTS","AMOUNT","RATE_DAILY","PERIOD"]
[311430868,1705097437987,-50020.0,0.00022999,2]
[311430869,1705097437999,-11479.51775204,0.00022999,2]
[311430870,1705097438012,-290.69157132,0.00022999,2]
[311430871,1705097438024,-434.32233559,0.00022999,2]
[311430872,1705097438036,-429.31951776,0.00022999,2]
[311430873,1705097438048,-1769.84271019,0.00022999,2]
[311430874,1705097438059,-730.45787478,0.00022999,2]
[311430875,1705097438071,-365.99022689,0.00022999,2]
[311430876,1705097438088,-512.76503077,0.00022999,2]
[311430877,1705097438134,-3827.63619175,0.00022999,2]
[311430878,1705097438147,-679525.38548286,0.00022999,2]
[311430879,1705097438156,-265.04401612,0.00022999,2]
[311430880,1705097438166,-150.0,0.00022999,2]
[311430881,1705097438179,-150.0,0.00022999,2]
[311430882,1705097438188,-150.0,0.00022999,2]
[311430883,1705097438198,-150.0,0.00022999,2]
[311430884,1705097438208,-150.0,0.00022999,2]
[311430885,1705097438218,-150.0,0.00022999,2]
[311430886,1705097438229,-150.0,0.00022999,2]
[311430887,1705097438239,-150.0,0.00022999,2]
[311430888,1705097438249,-11711931.96977929,0.00023,2]
[311430889,1705097438259,-933.03463795,0.00023,2]
[311430890,1705097438269,-433.47911193,0.00023,2]
[311430891,1705097438279,-2532111.92894354,0.00023,2]
[311430892,1705097438289,-334.26,0.00023,2]
[311430893,1705097438301,-181.76,0.00023003,2]
[311430895,1705097438311,-151.62,0.00023208,2]
[311430897,1705097438321,-201.54,0.00023249,2]
[311430899,1705097438331,-436.16067243,0.00023288,4]
[311430901,1705097438340,-242.37730372,0.00023288,2]
[311430903,1705097438350,-500.0,0.00023288,2]
[311430905,1705097438360,-500.0,0.00023288,2]
[311430908,1705097438370,-500.0,0.00023288,2]
[311430910,1705097438385,-298.30116364,0.00023288,2]
[311430912,1705097438395,-500.0,0.00023288,2]
[311430914,1705097438405,-500.0,0.00023288,2]
[311430916,1705097438414,-500.0,0.00023288,2]
[311430918,1705097438423,-500.0,0.00023288,2]
[311430920,1705097438433,-500.0,0.00023288,2]
[311430922,1705097438443,-500.0,0.00023288,2]
[311430924,1705097438452,-500.0,0.00023288,2]
[311430926,1705097438462,-500.0,0.00023288,2]
[311430927,1705097438471,-500.0,0.00023288,2]
[311430928,1705097438480,-500.0,0.00023288,2]
[311430929,1705097438489,-500.0,0.00023288,2]
[311430930,1705097438498,-245.34967056,0.00023288,2]
[311430931,1705097438508,-161.54544386,0.00023288,2]
[311430932,1705097438517,-500.0,0.00023288,2]
[311430933,1705097438527,-199.92495516,0.00023288,2]
[311430934,1705097438536,-500.0,0.00023288,2]
[311430935,1705097438545,-500.0,0.00023288,2]
[311430936,1705097438554,-500.0,0.00023288,2]
[311430937,1705097438564,-500.0,0.00023288,2]
[311430938,1705097438574,-498.48452905,0.00023288,4]
[311430939,1705097438583,-500.0,0.00023288,4]
[311430940,1705097438593,-240.94775061,0.00023288,4]
[311430941,1705097438602,-500.0,0.00023288,4]
[311430942,1705097438611,-220.0,0.00023288,4]
[311430943,1705097438621,-220.0,0.00023288,4]
[311430944,1705097438634,-205.0,0.00023767,4]
[311430945,1705097438643,-4008.0,0.000238,2]
[311430946,1705097438653,-437.0,0.000238,2]
[311430947,1705097438663,-800.0,0.00023808,2]
[311430948,1705097438672,-765.88,0.00023852,2]
[311430949,1705097438681,-430.99724455,0.00024,2]
[311430950,1705097438691,-181.76,0.00024098,2]
[311430951,1705097438700,-155.37292417,0.000241,2]
[311430952,1705097438710,-168.31,0.00024297,2]
[311430953,1705097438719,-484.97,0.00024318,2]
[311430954,1705097438728,-204.8,0.00024464,2]
[311430955,1705097438738,-757.4,0.0002447,2]
[311430956,1705097438747,-201.54,0.00024619,2]
[311430957,1705097438757,-210.0,0.00024642,2]
[311430958,1705097438766,-210.0,0.00024642,2]
[311430959,1705097438776,-250.0,0.00024658,2]
[311430960,1705097438785,-303.24,0.00024804,2]
[311430961,1705097438795,-765.88,0.0002483,2]
[311430962,1705097438805,-1462.0,0.00024864,2]
[311430963,1705097438814,-733.47420287,0.00025,2]
[311430964,1705097438824,-303.07385153,0.00025,2]
[311430965,1705097438834,-201.78427875,0.00025,2]
[311430966,1705097438850,-1069.51142143,0.00025,2]
[311430967,1705097438863,-252.954417,0.00025,2]
[311430968,1705097438873,-167.16432493,0.00025,2]
[311430969,1705097438887,-7116.65240661,0.00025,2]
[311430970,1705097438896,-350.0,0.00025,3]
[311430971,1705097438905,-171.61,0.00025119,2]
[311430972,1705097438915,-204.8,0.00025355,2]
[311430973,1705097438924,-168.31,0.00025633,2]
[311430974,1705097438934,-205.0,0.00025674,7]
[311430975,1705097438943,-171.61,0.00025747,2]
[311430976,1705097438952,-765.88,0.00025809,2]
[311430977,1705097438962,-153.76,0.00025845,2]
[311430978,1705097438972,-4000.0,0.00026,2]
[311430979,1705097438982,-150.0,0.00026079,2]
[311430980,1705097438991,-153.76,0.00026169,2]
[311430981,1705097439001,-204.8,0.00026245,2]
[311430982,1705097439011,-171.61,0.00026375,2]
[311430983,1705097439021,-153.76,0.00026493,2]
[311430984,1705097439031,-5318.68,0.00026575,2]
[311430985,1705097439041,-8998.09,0.00026575,2]
[311430986,1705097439050,-484.97,0.00026582,2]
[311430987,1705097439060,-765.88,0.00026787,2]
[311430988,1705097439070,-153.76,0.00026817,2]
[311430989,1705097439080,-168.31,0.0002697,2]
[311430990,1705097439089,-12283.43506918,0.00027,2]
[311430991,1705097439099,-415.58947133,0.00027,2]
[311430992,1705097439109,-400.0,0.00027,3]
[311430993,1705097439119,-171.61,0.00027003,2]
[311430994,1705097439133,-204.8,0.00027136,2]
[311430995,1705097439372,-153.76,0.00027141,2]
[311430996,1705097439386,-757.4,0.00027189,2]
[311430997,1705097439396,-200.0,0.00027397,5]
[311430998,1705097439406,-265.6479652,0.00027397,2]
[311430999,1705097439415,-150.0,0.00027397,2]
[311431000,1705097439424,-3000.0,0.00027397,2]
[311431001,1705097439433,-3000.0,0.00027397,2]
[311431002,1705097439446,-3000.0,0.00027397,2]
[311431003,1705097439456,-155.0,0.00027397,2]
[311431004,1705097439465,-4282.25,0.00027397,2]
[311431005,1705097439475,-250.0,0.00027397,2]
[311431006,1705097439485,-5687.92805834,0.000274,2]
[311431007,1705097439495,-250.0,0.000274,2]
[311431008,1705097439505,-153.76,0.00027466,2]
[311431009,1705097439515,-4282.25,0.00027556,2]
[311431010,1705097439524,-303.24,0.0002756,2]
[311431011,1705097439534,-205.0,0.00027581,10]
[311431012,1705097439543,-171.61,0.00027631,2]
[311431013,1705097439552,-4282.25,0.00027714,2]
[311431014,1705097439562,-765.88,0.00027766,2]
[311431015,1705097439571,-153.76,0.0002779,2]
[311431016,1705097439581,-4282.25,0.00027872,2]
[311431017,1705097439591,-357.99084569,0.00027874,2]
[311431018,1705097439600,-346.22363233,0.00027945,5]
[311431019,1705097439610,-5281.42063444,0.00028,6]
[311431020,1705097439619,-687.85574589,0.00028,2]
[311431021,1705097439631,-203.59459006,0.00028,2]
[311431022,1705097439641,-204.8,0.00028027,2]
[311431023,1705097439650,-4282.25,0.0002803,2]
[311431024,1705097439660,-153.76,0.00028114,2]
[311431025,1705097439669,-4282.25,0.00028189,2]
[311431026,1705097439679,-215.07,0.00028281,2]
[311431027,1705097439688,-507.0,0.00028281,2]
[311431028,1705097439698,-884.0,0.00028281,2]
[311431029,1705097439707,-4097.995,0.00028304,2]
[311431030,1705097439717,-4166.0,0.00028304,2]
[311431031,1705097439727,-5566.0,0.00028304,2]
[311431032,1705097439736,-4632.472,0.00028304,2]
[311431033,1705097439745,-2275.785,0.00028304,2]
[311431034,1705097439755,-2901.0,0.00028304,2]
[311431035,1705097439765,-19678.0,0.00028304,2]
[311431036,1705097439775,-256.349,0.00028304,2]
[311431037,1705097439784,-1028.0,0.00028304,2]
[311431038,1705097439793,-168.31,0.00028307,2]
[311431039,1705097439803,-1011.93517598,0.00028308,2]
[311431040,1705097439814,-322.47609316,0.0002831,2]
[311431041,1705097439824,-4282.25,0.00028347,2]
[311431042,1705097439833,-173.187,0.00028372,2]
[311431043,1705097439843,-634.913,0.00028372,2]
[311431044,1705097439853,-433.963,0.00028372,2]
[311431045,1705097439862,-995.0,0.00028372,2]
[311431046,1705097439872,-1931.0,0.00028372,2]
[311431047,1705097439884,-318.0,0.00028372,2]
[311431048,1705097439894,-153.76,0.00028438,2]
[311431049,1705097439903,-4282.25,0.00028505,2]
[311431050,1705097439913,-1244.83951355,0.00028605,2]
[311431051,1705097439923,-4282.25,0.00028664,2]
[311431052,1705097439933,-765.88,0.00028744,2]
[311431053,1705097439944,-153.76,0.00028762,2]
[311431054,1705097439954,-155.0,0.00028767,2]
[311431055,1705097439964,-4282.25,0.00028822,2]
[311431056,1705097439974,-484.97,0.00028846,2]
[311431057,1705097439984,-204.8,0.00028918,2]
[311431058,1705097439994,-1244.83951355,0.00028976,2]
[311431059,1705097440003,-155.12473008,0.00029,2]
[311431060,1705097440013,-450.0,0.00029,3]
[311431061,1705097440023,-1245.72281194,0.00029015,2]
[311431062,1705097440033,-153.76,0.00029086,2]
[311431063,1705097440043,-1244.83951355,0.00029158,2]
[311431064,1705097440052,-9116.48015352,0.00029189,2]
[311431065,1705097440062,-1245.72281194,0.00029215,2]
[311431066,1705097440072,-1245.72281194,0.00029348,2]
[311431067,1705097440081,-1244.83951355,0.00029362,2]
[311431068,1705097440091,-816.21007427,0.000294,2]
[311431069,1705097440100,-816.21007427,0.000294,2]
[311431070,1705097440109,-816.21007427,0.000294,2]
[311431072,1705097440122,-816.21007427,0.000294,2]
[311431073,1705097440134,-816.21007427,0.000294,2]
[311431074,1705097440143,-816.21007427,0.000294,2]
[311431075,1705097440153,-816.21007427,0.000294,2]
[311431076,1705097440162,-816.21007427,0.000294,2]
[311431077,1705097440171,-816.21007427,0.000294,2]
[311431078,1705097440181,-816.21007427,0.000294,2]
[311431079,1705097440190,-816.21007427,0.000294,2]
[311431080,1705097440200,-816.21007427,0.000294,2]
[311431082,1705097440209,-816.21007427,0.000294,2]
[311431084,1705097440220,-153.76,0.0002941,2]
[311431086,1705097440230,-150.46768086,0.00029449,2]
[311431088,1705097440239,-205.0,0.00029488,13]
[311431089,1705097440249,-299.56963255,0.000295,3]
[311431091,1705097440259,-19105.65798421,0.000295,2]
[311431093,1705097440269,-12580.36532251,0.0002951,2]
[311431094,1705097440279,-150.0,0.00029529,2]
[311431095,1705097440289,-150.0,0.00029542,2]
[311431096,1705097440299,-500.0,0.00029562,2]
[311431097,1705097440309,-150.0,0.00029565,2]
[311431098,1705097440319,-150.0,0.00029573,2]
[311431099,1705097440329,-150.0,0.00029581,2]
[311431100,1705097440339,-150.0,0.00029582,2]
[311431101,1705097440349,-150.0,0.00029585,2]
[311431102,1705097440359,-150.0,0.00029592,2]
[311431103,1705097440369,-150.0,0.00029606,2]
[311431104,1705097440380,-150.0,0.00029612,2]
[311431105,1705097440391,-1500.0,0.0002962,2]
[311431106,1705097440400,-150.0,0.00029634,2]
[311431107,1705097440409,-150.0,0.00029643,2]
[311431108,1705097440419,-150.0,0.00029644,2]
[311431109,1705097440428,-500.0,0.00029648,2]
[311431110,1705097440438,-150.0,0.00029651,2]
[311431111,1705097440447,-150.0,0.00029673,2]
[311431112,1705097440456,-150.0,0.00029675,2]
[311431113,1705097440467,-300.0,0.00029676,2]
[311431114,1705097440476,-150.0,0.00029688,2]
[311431115,1705097440486,-200.0,0.00029693,3]
[311431116,1705097440496,-800.0,0.00029693,5]
[311431117,1705097440505,-200.0,0.00029693,3]
[311431118,1705097440515,-150.0,0.00029701,2]
[311431119,1705097440525,-150.0,0.00029707,2]
[311431120,1705097440534,-765.88,0.00029723,2]
[311431121,1705097440543,-1500.0,0.00029729,2]
[311431122,1705097440553,-150.0,0.00029734,2]
[311431123,1705097440563,-153.76,0.00029734,2]
[311431124,1705097440573,-150.0,0.00029738,2]
[311431125,1705097440582,-150.0,0.00029738,2]
[311431126,1705097440592,-150.0,0.00029764,2]
[311431127,1705097440602,-150.0,0.00029765,2]
[311431128,1705097440612,-1968.02987166,0.00029797,2]
[311431129,1705097440622,-155.42281929,0.00029798,2]
[311431130,1705097440634,-2139.22891319,0.00029798,2]
[311431131,1705097440643,-155.0,0.00029798,2]
[311431132,1705097440652,-1473.73534993,0.00029798,2]
[311431133,1705097440662,-1143.82641546,0.00029798,2]
[311431134,1705097440671,-1699.16,0.00029799,2]
[311431135,1705097440681,-1699.16,0.00029799,2]
[311431136,1705097440691,-1699.16,0.00029799,2]
[311431137,1705097440700,-1699.16,0.00029799,2]
[311431138,1705097440710,-1699.16,0.00029799,2]
[311431139,1705097440720,-1699.16,0.00029799,2]
[311431140,1705097440729,-1699.16,0.00029799,2]
[311431141,1705097440739,-1699.16,0.00029799,2]
[311431142,1705097440749,-1699.16,0.00029799,2]
[311431143,1705097440758,-1699.16,0.00029799,2]
[311431144,1705097440768,-214.27985091,0.00029799,2]
[311431145,1705097440778,-3292.32224499,0.00029799,2]
[311431146,1705097440787,-150.0,0.00029799,2]
[311431147,1705097440797,-150.0,0.00029799,2]
[311431148,1705097440807,-139289.15361195,0.000298,2]
[311431149,1705097440823,-589298.65650691,0.000298,2]
[311431150,1705097440835,-1058.031975,0.000298,2]
[311431151,1705097440859,-1797.91698902,0.000298,2]
[311431152,1705097440875,-1443.75127783,0.000298,2]
[311431153,1705097440892,-1008.0,0.000298,2]
[311431154,1705097440905,-7284.24449035,0.000298,2]
[311431155,1705097440916,-1027.1718567,0.000298,2]
[311431156,1705097440928,-994.53872363,0.000298,2]
[311431157,1705097440952,-4278.2,0.000298,2]
[311431158,1705097440964,-795.47726131,0.000298,2]
[311431159,1705097440975,-278.97770089,0.000298,2]
[311431160,1705097440987,-2596.94445518,0.000298,2]
[311431161,1705097441021,-623.62808732,0.000298,2]
[311431162,1705097441033,-21510.59889,0.000298,2]
[311431163,1705097441049,-2259.87040718,0.000298,2]
[311431164,1705097441060,-2131.90506,0.000298,2]
[311431165,1705097441072,-504.16,0.000298,2]
[311431166,1705097441083,-712.0,0.000298,2]
[311431167,1705097441095,-1251.75,0.000298,2]
[311431189,1705097441464,-223.08128456,0.000229,2]
[311431191,1705097441474,-1578.71871604,0.00023767,2]
[311431197,1705097441523,-1781.00147102,0.00023767,2]
[311431199,1705097441534,-6640.26981294,0.00023767,2]
[311431201,1705097441543,-156.56,0.000257,2]
[311431203,1705097441554,-156.56,0.00025914,2]
[311431205,1705097441564,-2842.78149255,0.000298,2]
[311431208,1705097441575,-43459.061525,0.000298,2]
[311431222,1705097441763,-2161.75108759,0.000298,2]
[311431223,1705097441774,-21301.25135998,0.000298,2]
[311431224,1705097441785,-375.08655455,0.000298,2]
[311431225,1705097441796,-942.16504481,0.000298,2]
[311431226,1705097441805,-2657.57190784,0.000298,2]
[311431320,1705097442606,-9294.8643,0.000298,2]
[311431401,1705097443025,-156.56,0.00026128,2]
[311431405,1705097443045,-156.56,0.00026343,2]
[311431407,1705097443063,-109.64754287,0.00026557,2]
[311431410,1705097443080,-46.91245713,0.00026557,2]
[311431413,1705097443096,-2703.41792689,0.000298,2]
[311431416,1705097443113,-411.52990245,0.000298,2]
[311431419,1705097443140,-1075.97623632,0.000298,2]
[311431422,1705097443158,-4260.9096,0.000298,2]
[311431424,1705097443175,-504.29789126,0.000298,2]
[311431425,1705097443193,-6829.46585113,0.000298,2]
[311431427,1705097443211,-86000.0,0.000298,2]
[311431430,1705097443230,-1290.21,0.000298,2]
[311431433,1705097443250,-935.11173024,0.000298,2]
[311431436,1705097443267,-1003.60097104,0.000298,2]
[311431440,1705097443292,-156637.69404783,0.000298,2]
[311431443,1705097443308,-175.2741689,0.000298,2]
[311431445,1705097443325,-200.0,0.000298,2]
[311431448,1705097443340,-3241.86782923,0.000298,2]
[311431450,1705097443355,-152473.43743615,0.000298,2]
[311431453,1705097443374,-278.69079999,0.000298,2]
[311431456,1705097443398,-8774.2658,0.000298,2]
[311431486,1705097443960,-220.91487057,0.00026244,4]
[311431487,1705097443975,-156.56,0.00026771,2]
[311431488,1705097443989,-4867.25314291,0.000298,2]
[311431489,1705097444007,-3659.66729667,0.000298,2]
[311431490,1705097444024,-417097.42542831,0.000298,2]
[311431491,1705097444039,-2000.0,0.000298,2]
[311431492,1705097444055,-200.0,0.000298,2]
[311431493,1705097444070,-1500.0,0.000298,2]
[311431494,1705097444086,-386.31699313,0.000299,2]
[311431495,1705097444101,-757.4,0.00029907,2]
[311431496,1705097444116,-1245.72281194,0.00029921,2]
[311431497,1705097444131,-3660.28081603,0.0002996,2]
[311431498,1705097444147,-984.01493583,0.00029997,2]
[311431499,1705097444162,-150.0,0.00029999,2]
[311431500,1705097444177,-100000.0,0.0003,2]
[311431501,1705097444192,-445.55922522,0.0003,4]
[311431502,1705097444206,-681.85266656,0.0003,4]
[311431503,1705097444221,-155.0,0.0003,2]
[311431504,1705097444236,-581.79448282,0.0003,2]
[311431505,1705097444250,-526.10734527,0.0003,30]
[311431507,1705097444265,-18999.30236546,0.0003,4]
[311431509,1705097444280,-350.38014876,0.0003,2]
[311431512,1705097444295,-8826.98630773,0.0003,4]
[311431515,1705097444310,-9625.15929167,0.0003,2]
[311431517,1705097444328,-6851.60015863,0.0003,4]
[311431521,1705097444343,-308452.81074364,0.0003,4]
[311431524,1705097444359,-323.88666588,0.0003,2]
[311431530,1705097444375,-69349.68870793,0.0003,4]
[311431533,1705097444387,-1177.07132484,0.0003,2]
[311431536,1705097444397,-155.42293483,0.0003,30]
[311431539,1705097444406,-83754.07130941,0.0003,4]
[311431542,1705097444416,-245762.14533602,0.0003,2]
[311431555,1705097444766,-21699.54526381,0.0003,2]
[311431556,1705097444825,-7521.29999952,0.0003,2]
[311431557,1705097444835,-4409.62502906,0.0003,2]
[311431558,1705097444847,-4004.1269977,0.0003,2]
[311431559,1705097444858,-3074.93406337,0.0003,2]
[311431560,1705097444869,-34220.51999999,0.0003,2]
[311431561,1705097445098,-713.76438614,0.0003,2]
[311431562,1705097445159,-518.74141555,0.0003,2]
[311431563,1705097445170,-252.66958253,0.0003,2]
[311431564,1705097445181,-10714.0644,0.0003,2]
[311431565,1705097445192,-546.39837981,0.0003,2]
[311431566,1705097445203,-287.756469,0.0003,2]
[311431567,1705097445214,-508.42386542,0.0003,2]
[311431568,1705097445225,-853.2524,0.0003,2]
[311431569,1705097445236,-1565.08118975,0.0003,2]
[311431570,1705097445247,-1533.29370938,0.0003,2]
[311431571,1705097445258,-260.2328434,0.0003,2]
[311431572,1705097445663,5252.58160905,0.00022192,2]
[311431576,1705097445803,-246.39576141,0.00026127,2]
[311431577,1705097445813,-5748.70610728,0.0003,2]
[311431578,1705097445826,-21321.08272757,0.0003,2]
[311431579,1705097445840,-854.0,0.0003,2]
[311431580,1705097445855,-812.47332721,0.0003,2]
[311431581,1705097445927,-459.3406998,0.0003,2]
[311431582,1705097445941,-1246.49999999,0.0003,2]
[311431583,1705097445953,-651.37888688,0.0003,2]
[311431584,1705097445966,-4649.44216852,0.0003,2]
[311431585,1705097445976,-1769.7948536,0.0003,2]
[311431586,1705097445988,-1230.2051464,0.0003,2]
[311431587,1705097445997,-3000.0,0.0003,2]
[311431588,1705097446006,-636.19494171,0.0003,2]
[311431589,1705097446068,-2363.80505829,0.0003,2]
[311431590,1705097446078,-3000.0,0.0003,2]
[311431591,1705097446087,-3000.0,0.0003,2]
[311431592,1705097446097,-941.35941173,0.0003,2]
[311431593,1705097446108,-292.27968835,0.0003,2]
[311431594,1705097446119,-283.98999426,0.0003,2]
[311431595,1705097446176,-595.76856361,0.0003,2]
[311431596,1705097446187,-886.60234205,0.0003,2]
[311431597,1705097446196,-154.0,0.0003,2]
[311431598,1705097446205,-154.0,0.0003,2]
[311431599,1705097446215,-154.0,0.0003,2]
[311431600,1705097446224,-154.0,0.0003,2]
[311431601,1705097446234,-154.0,0.0003,2]
[311431602,1705097446243,-154.0,0.0003,2]
[311431603,1705097446252,-154.0,0.0003,2]
[311431605,1705097446262,-450.0,0.0003002,3]
[311431607,1705097446271,-153.76,0.00030059,2]
[311431608,1705097446281,-1244.83951355,0.0003009,2]
[311431610,1705097446290,-2000.0,0.00030098,2]
[311431612,1705097446300,-200.0,0.00030098,2]
[311431614,1705097446311,-166.44469578,0.000301,2]
[311431617,1705097446324,-150.0,0.00030136,2]
[311431618,1705097446333,-8.37135928,0.00030136,2]
[311431621,1705097446345,-141.62864072,0.00030136,2]
[311431623,1705097446354,-150.0,0.00030136,2]
[311431625,1705097446363,-150.0,0.00030136,2]
[311431627,1705097446373,-150.0,0.00030136,2]
[311431629,1705097446382,-150.0,0.00030136,2]
[311431631,1705097446395,-150.0,0.00030136,2]
[311431633,1705097446404,-150.0,0.00030136,2]
[311431635,1705097446413,-150.0,0.00030136,2]
[311431637,1705097446422,-150.0,0.00030136,2]
[311431639,1705097446431,-202.44751056,0.00030136,2]
[311431641,1705097446440,-153.84,0.00030137,2]
[311431643,1705097446449,-1245.72281194,0.00030155,2]
[311431645,1705097446458,-1244.83951355,0.00030292,2]
[311431647,1705097446467,-303.24,0.00030316,2]
[311431649,1705097446476,-153.76,0.00030383,2]
[311431651,1705097446486,-650.0,0.000305,2]
[311431653,1705097446494,-765.88,0.00030701,2]
[311431655,1705097446504,-153.76,0.00030707,2]
[311431657,1705097446513,-154.3266408,0.000309,2]
[311431659,1705097446522,-154.32664003,0.000309,2]
[311431661,1705097446530,-57026.22824241,0.00031,2]
[311431667,1705097447304,-17029.2,0.00031,2]
[311431668,1705097447837,-3450.3558824,0.00031,2]
[311431669,1705097447850,-2347.46759022,0.00031,2]
[311431670,1705097447862,-430.0,0.00031,2]
[311431671,1705097447873,-2118.62672388,0.00031,2]
[311431672,1705097451513,14975.30857226,0.0002219,2]
[311431674,1705097454872,157.14140716,0.0002219,2]
[311431676,1705097476840,814.6232,0.00022318,2]
[311431677,1705097510171,15689.27549142,0.0002219,2]
[311431678,1705097518981,6656.3882,0.00022318,2]
[311431679,1705097528160,2530.62153681,0.0002219,2]
[311431680,1705097537695,1228.676,0.00022318,2]
[311431681,1705097548124,1597.0217,0.00022318,2]
[311431682,1705097560965,29782.1642,0.00022318,2]
[311431686,1705097630703,2500.0,0.00022318,2]
[311431688,1705097760487,417.8,0.00020751,2]
[311431689,1705097842011,1011.93517598,0.00021849,2]
[311431693,1705097988953,250.0,0.00021969,2]
[311431694,1705097998528,1476.08,0.00021969,2]
[311431695,1705098029976,153.76,0.00022149,2]
[311431697,1705098030264,420.42,0.0002193,2]
[311431698,1705098067389,3060.49,0.00021898,2]
[311431699,1705098087416,180.47,0.00022063,2]
[311431700,1705098087611,180.47,0.00022123,2]
[311431701,1705098088022,180.47,0.00022184,2]
[311431702,1705098088288,180.47,0.00022244,2]
[311431703,1705098088721,180.47,0.00022305,2]
[311431704,1705098088964,180.47,0.00022365,2]
[311431705,1705098140444,151.48,0.00021796,2]
[311431706,1705098199281,14565.59583606,0.00021786,2]
[311431707,1705098199307,9334.40416394,0.00021786,2]
[311431710,1705098237294,511.0,0.00031,120]
[311431711,1705098245482,421.16,0.00019885,2]
[311431712,1705098355194,150.0,0.00021768,2]
[311431713,1705098355213,123.52,0.00021768,2]
[311431727,1705098418893,150.0,0.00021606,2]
[311431728,1705098418914,2.71,0.00021606,2]
[311431729,1705098419112,147.29,0.00021914,2]
[311431730,1705098419133,5.42,0.00021914,2]
[311431967,1705098488338,144.58,0.00021825,2]
[311431968,1705098488359,9.89,0.00021825,2]
[311431969,1705098493788,140.11,0.00021561,2]
[311431970,1705098493810,150.0,0.00021561,2]
[311431971,1705098493832,150.0,0.00021561,2]
[311431972,1705098493854,150.0,0.00021561,2]
[311431973,1705098493876,127.17,0.00021561,2]
[311431975,1705098521722,55.08218775,0.00021761,2]
[311431976,1705098521758,102.45781225,0.00021761,2]
[311431977,1705098521945,157.54,0.00021831,2]
[311431978,1705098522214,157.54,0.00021902,2]
[311431979,1705098522397,157.54,0.00021973,2]
[311431980,1705098584448,1000.0,0.00031,120]
[311431981,1705098598433,175.39572225,0.00021918,2]
[311431982,1705098598455,1226.00427775,0.00021918,2]
[311431983,1705098602037,878.81,0.00021445,2]
[311432017,1705098631970,-2136.98369019,0.00022038,2]
[311432019,1705098631979,-3077.75979434,0.00022039,2]
[311432021,1705098631991,-2107.65555,0.00022039,2]
[311432023,1705098632003,-87.02628204,0.00022039,2]
[311432025,1705098632013,-160.46586719,0.00022039,2]
[311432027,1705098632022,-253.61438713,0.00022039,2]
[311432031,1705098632061,-984.25671449,0.00022039,2]
[311432032,1705098632072,-1066.20624566,0.00022039,2]
[311432033,1705098632081,-150.0,0.0002204,2]
[311432034,1705098632090,-487.27860519,0.0002204,2]
[311432035,1705098632099,-3141.15835728,0.0002204,2]
[311432036,1705098632109,-3325.25210067,0.0002204,2]
[311432037,1705098632118,-145.00888563,0.00022041,2]
[311432038,1705098632146,-552.01600729,0.00022041,2]
[311432039,1705098632156,-4698.35903998,0.00022041,2]
[311432040,1705098632166,-4735.92393106,0.00022041,2]
[311432041,1705098632176,-157.54,0.00022044,2]
[311432042,1705098632185,-157.54,0.00022115,2]
[311432043,1705098632195,-4082.36859338,0.00022124,2]
[311432044,1705098632204,-3001.53867376,0.00022144,2]
[311432045,1705098632214,-600.0,0.00022144,2]
[311432046,1705098632223,-2864.21375453,0.00022145,2]
[311432047,1705098632235,-185153.0072129,0.00022145,2]
[311432048,1705098632244,-421.16,0.00022149,2]
[311432049,1705098632253,-9564.74,0.00022149,2]
[311432050,1705098632262,-400.08,0.00022149,2]
[311432051,1705098632273,-322.05,0.00022149,2]